[Event "Titled Tuesday Blitz July 4 Early 2023"]
[White "Sariego Figueredo, Wilfredo"]
[Black "Korpics, Zsolt"]
[WhiteFideId "3500080"]
[BlackFideId "705241"]
[WhiteElo "2192"]
[BlackElo "2334"]
[Result "1-0"]
[Round "11"]
[TimeControl "180+2"]
[Date "2023.07.04"]
[WhiteClock "0:00:05"]
[BlackClock "0:00:06"]
[Board "139"]

1. d4 {[%clk 0:03:00]}  Nf6 {[%clk 0:02:58]} 2. Bf4 {[%clk 0:03:00]}  d5 {[%clk 0:02:57]} 3. e3 {[%clk 0:03:01]}  c5 {[%clk 0:02:56]} 4. c3 {[%clk 0:02:48]}  Nc6 {[%clk 0:02:54]} 5. Nd2 {[%clk 0:02:46]}  Bf5 {[%clk 0:02:54]} 6. Ngf3 {[%clk 0:02:45]}  e6 {[%clk 0:02:53]} 7. Qb3 {[%clk 0:02:43]}  Qb6 {[%clk 0:02:24]} 8. Qxb6 {[%clk 0:02:39]}  axb6 {[%clk 0:02:25]} 9. Bc7 {[%clk 0:02:39]}  Nd7 {[%clk 0:02:24]} 10. Be2 {[%clk 0:02:33]}  Be7 {[%clk 0:02:23]} 11. O-O {[%clk 0:02:27]}  O-O {[%clk 0:02:23]} 12. g3 {[%clk 0:02:23]}  Rfc8 {[%clk 0:02:21]} 13. Bf4 {[%clk 0:02:17]}  c4 {[%clk 0:02:12]} 14. Nh4 {[%clk 0:02:11]}  g5 {[%clk 0:01:44]} 15. Nxf5 {[%clk 0:02:10]}  exf5 {[%clk 0:01:44]} 16. Be5 {[%clk 0:02:08]}  f6 {[%clk 0:01:43]} 17. Bf3 {[%clk 0:02:06]}  fxe5 {[%clk 0:01:29]} 18. Bxd5+ {[%clk 0:02:06]}  Kg7 {[%clk 0:01:30]} 19. Nxc4 {[%clk 0:02:05]}  b5 {[%clk 0:01:28]} 20. Nd2 {[%clk 0:01:57]}  exd4 {[%clk 0:01:05]} 21. exd4 {[%clk 0:01:56]}  Nf6 {[%clk 0:01:05]} 22. Be6 {[%clk 0:01:55]}  Re8 {[%clk 0:00:56]} 23. Bxf5 {[%clk 0:01:52]}  Bd6 {[%clk 0:00:56]} 24. Nf3 {[%clk 0:01:48]}  g4 {[%clk 0:00:52]} 25. Nh4 {[%clk 0:01:43]}  Re2 {[%clk 0:00:50]} 26. Bd3 {[%clk 0:01:33]}  Re6 {[%clk 0:00:18]} 27. Bxb5 {[%clk 0:01:29]}  Bc7 {[%clk 0:00:09]} 28. Bd3 {[%clk 0:01:22]}  Rae8 {[%clk 0:00:06]} 29. a3 {[%clk 0:01:10]}  Ne7 {[%clk 0:00:05]} 30. c4 {[%clk 0:01:00]}  Rd8 {[%clk 0:00:04]} 31. d5 {[%clk 0:00:59]}  Rb6 {[%clk 0:00:05]} 32. b4 {[%clk 0:00:58]}  Be5 {[%clk 0:00:05]} 33. Rae1 {[%clk 0:00:53]}  Bd6 {[%clk 0:00:02]} 34. c5 {[%clk 0:00:47]}  Bxc5 {[%clk 0:00:02]} 35. bxc5 {[%clk 0:00:46]}  Rb3 {[%clk 0:00:01]} 36. Rxe7+ {[%clk 0:00:46]}  Kf8 {[%clk 0:00:02]} 37. Bc4 {[%clk 0:00:43]}  Rc3 {[%clk 0:00:02]} 38. Re6 {[%clk 0:00:16]}  Nxd5 {[%clk 0:00:02]} 39. Bxd5 {[%clk 0:00:15]}  Rxd5 {[%clk 0:00:03]} 40. Rb6 {[%clk 0:00:15]}  Rdxc5 {[%clk 0:00:03]} 41. Rxb7 {[%clk 0:00:15]}  Rxa3 {[%clk 0:00:04]} 42. Rd1 {[%clk 0:00:15]}  Rc8 {[%clk 0:00:04]} 43. Nf5 {[%clk 0:00:14]}  Rf3 {[%clk 0:00:03]} 44. Nd4 {[%clk 0:00:13]}  Rf6 {[%clk 0:00:03]} 45. Nb5 {[%clk 0:00:12]}  Kg8 {[%clk 0:00:02]} 46. Ra1 {[%clk 0:00:08]}  Rcf8 {[%clk 0:00:03]} 47. Raa7 {[%clk 0:00:07]}  Re8 {[%clk 0:00:02]} 48. Rg7+ {[%clk 0:00:07]}  Kf8 {[%clk 0:00:03]} 49. Rxh7 {[%clk 0:00:07]}  Re1+ {[%clk 0:00:02]} 50. Kg2 {[%clk 0:00:08]}  Kg8 {[%clk 0:00:03]} 51. Rag7+ {[%clk 0:00:08]}  Kf8 {[%clk 0:00:03]} 52. Nd6 {[%clk 0:00:08]}  Re2 {[%clk 0:00:02]} 53. Rf7+ {[%clk 0:00:06]}  Rxf7 {[%clk 0:00:03]} 54. Rxf7+ {[%clk 0:00:07]}  Kg8 {[%clk 0:00:03]} 55. Rf4 {[%clk 0:00:07]}  Rd2 {[%clk 0:00:03]} 56. Rxg4+ {[%clk 0:00:07]}  Kh7 {[%clk 0:00:04]} 57. Ne4 {[%clk 0:00:08]}  Re2 {[%clk 0:00:04]} 58. Rf4 {[%clk 0:00:07]}  Kh6 {[%clk 0:00:03]} 59. h4 {[%clk 0:00:06]}  Ra2 {[%clk 0:00:02]} 60. Rf6+ {[%clk 0:00:06]}  Kh7 {[%clk 0:00:03]} 61. g4 {[%clk 0:00:07]}  Kh8 {[%clk 0:00:03]} 62. g5 {[%clk 0:00:06]}  Kg7 {[%clk 0:00:04]} 63. h5 {[%clk 0:00:06]}  Kg8 {[%clk 0:00:04]} 64. h6 {[%clk 0:00:04]}  Kh8 {[%clk 0:00:05]} 65. Ng3 {[%clk 0:00:05]}  Kh7 {[%clk 0:00:05]} 66. Nf5 {[%clk 0:00:05]}  Kg8 {[%clk 0:00:04]} 67. Kg3 {[%clk 0:00:05]}  Kh7 {[%clk 0:00:05]} 68. Kg4 {[%clk 0:00:05]}  Kg8 {[%clk 0:00:05]} 69. Kh5 {[%clk 0:00:05]}  Ra4 {[%clk 0:00:06]} 70. Kg6 {[%clk 0:00:05]}  Kh8 {[%clk 0:00:06]} 71. Rf8# {[%clk 0:00:05]} 1-0


[Site "https://www.chess.com"]

[Event "Titled Tuesday Blitz July 4 Early 2023"]
[White "Hartikainen, Jarmo"]
[Black "Dwilewicz, Katarzyna"]
[WhiteFideId "503134"]
[BlackFideId "1148486"]
[WhiteElo "2160"]
[BlackElo "2316"]
[Result "1-0"]
[Round "11"]
[TimeControl "180+2"]
[Date "2023.07.04"]
[WhiteClock "0:00:53"]
[BlackClock "0:00:54"]
[Board "140"]

1. e4 {[%clk 0:03:00]}  c5 {[%clk 0:02:58]} 2. c3 {[%clk 0:03:00]}  g6 {[%clk 0:02:56]} 3. d4 {[%clk 0:03:00]}  Bg7 {[%clk 0:02:56]} 4. Be3 {[%clk 0:02:59]}  Nf6 {[%clk 0:02:52]} 5. f3 {[%clk 0:02:59]}  d5 {[%clk 0:02:46]} 6. dxc5 {[%clk 0:02:56]}  dxe4 {[%clk 0:02:45]} 7. Qxd8+ {[%clk 0:02:55]}  Kxd8 {[%clk 0:02:46]} 8. Na3 {[%clk 0:02:55]}  Nc6 {[%clk 0:02:41]} 9. O-O-O+ {[%clk 0:02:54]}  Kc7 {[%clk 0:02:41]} 10. Nb5+ {[%clk 0:02:40]}  Kb8 {[%clk 0:02:40]} 11. Bc4 {[%clk 0:02:28]}  a6 {[%clk 0:02:39]} 12. Nd4 {[%clk 0:02:28]}  Ne5 {[%clk 0:02:37]} 13. Bb3 {[%clk 0:02:24]}  Nfd7 {[%clk 0:02:26]} 14. fxe4 {[%clk 0:02:07]}  Nxc5 {[%clk 0:02:20]} 15. Nc6+ {[%clk 0:01:57]}  Nxc6 {[%clk 0:02:18]} 16. Bxc5 {[%clk 0:01:57]}  Bg4 {[%clk 0:02:18]} 17. Nf3 {[%clk 0:01:57]}  Kc7 {[%clk 0:02:14]} 18. Bxf7 {[%clk 0:01:55]}  Rhf8 {[%clk 0:02:09]} 19. Bd5 {[%clk 0:01:38]}  e6 {[%clk 0:02:05]} 20. Bxc6 {[%clk 0:01:37]}  Kxc6 {[%clk 0:02:05]} 21. Bxf8 {[%clk 0:01:37]}  Rxf8 {[%clk 0:02:05]} 22. Rhf1 {[%clk 0:01:37]}  Kc7 {[%clk 0:01:50]} 23. h3 {[%clk 0:01:31]}  Bxf3 {[%clk 0:01:43]} 24. Rxf3 {[%clk 0:01:31]}  Rxf3 {[%clk 0:01:29]} 25. gxf3 {[%clk 0:01:31]}  Be5 {[%clk 0:01:27]} 26. Kc2 {[%clk 0:01:31]}  b5 {[%clk 0:01:26]} 27. Rf1 {[%clk 0:01:28]}  g5 {[%clk 0:01:26]} 28. a4 {[%clk 0:01:20]}  Kd7 {[%clk 0:01:17]} 29. axb5 {[%clk 0:01:19]}  axb5 {[%clk 0:01:17]} 30. Ra1 {[%clk 0:01:18]}  Bc7 {[%clk 0:01:13]} 31. Ra6 {[%clk 0:01:13]}  h5 {[%clk 0:01:12]} 32. Kd3 {[%clk 0:01:11]}  Ke7 {[%clk 0:01:09]} 33. Rc6 {[%clk 0:01:04]}  Kd7 {[%clk 0:01:05]} 34. Rc5 {[%clk 0:01:02]}  e5 {[%clk 0:01:00]} 35. Rxb5 {[%clk 0:00:58]}  Ke6 {[%clk 0:00:59]} 36. Rd5 {[%clk 0:00:54]}  Bd6 {[%clk 0:00:54]} 37. b4 {[%clk 0:00:53]} 1-0


[Site "https://www.chess.com"]

[Event "Titled Tuesday Blitz July 4 Early 2023"]
[White "BebeBonito2022"]
[Black "Vifleemskaia, Svetlana"]
[BlackFideId "4129490"]
[WhiteElo "2155"]
[BlackElo "2304"]
[Result "1/2-1/2"]
[Round "11"]
[TimeControl "180+2"]
[Date "2023.07.04"]
[WhiteClock "0:00:24"]
[BlackClock "0:00:24"]
[Board "141"]

1. d4 {[%clk 0:03:00]}  Nf6 {[%clk 0:02:02]} 2. c4 {[%clk 0:02:59]}  e6 {[%clk 0:02:02]} 3. Nc3 {[%clk 0:03:00]}  Bb4 {[%clk 0:02:02]} 4. e3 {[%clk 0:03:00]}  O-O {[%clk 0:02:02]} 5. Bd2 {[%clk 0:03:01]}  d6 {[%clk 0:02:02]} 6. Nf3 {[%clk 0:03:00]}  Bxc3 {[%clk 0:02:02]} 7. Bxc3 {[%clk 0:03:00]}  Ne4 {[%clk 0:02:03]} 8. Qc2 {[%clk 0:03:00]}  Nxc3 {[%clk 0:02:02]} 9. Qxc3 {[%clk 0:03:00]}  a5 {[%clk 0:01:59]} 10. Bd3 {[%clk 0:02:58]}  Qe7 {[%clk 0:01:59]} 11. e4 {[%clk 0:02:53]}  Nd7 {[%clk 0:01:59]} 12. e5 {[%clk 0:02:52]}  dxe5 {[%clk 0:01:58]} 13. dxe5 {[%clk 0:02:52]}  Nc5 {[%clk 0:01:59]} 14. Bc2 {[%clk 0:02:51]}  b6 {[%clk 0:01:58]} 15. O-O-O {[%clk 0:02:43]}  Bb7 {[%clk 0:01:58]} 16. h4 {[%clk 0:02:40]}  Be4 {[%clk 0:01:48]} 17. Ng5 {[%clk 0:02:35]}  Bxc2 {[%clk 0:01:43]} 18. Qxc2 {[%clk 0:02:36]}  g6 {[%clk 0:01:43]} 19. f4 {[%clk 0:02:32]}  f6 {[%clk 0:01:28]} 20. Nf3 {[%clk 0:02:26]}  fxe5 {[%clk 0:01:21]} 21. fxe5 {[%clk 0:02:06]}  Qf7 {[%clk 0:01:21]} 22. h5 {[%clk 0:01:55]}  Qf4+ {[%clk 0:01:19]} 23. Kb1 {[%clk 0:01:50]}  Qf5 {[%clk 0:01:17]} 24. hxg6 {[%clk 0:01:49]}  hxg6 {[%clk 0:01:09]} 25. Rh6 {[%clk 0:01:32]}  Kg7 {[%clk 0:01:08]} 26. Rdh1 {[%clk 0:01:31]}  Qxc2+ {[%clk 0:01:07]} 27. Kxc2 {[%clk 0:01:31]}  Rh8 {[%clk 0:01:08]} 28. Rxh8 {[%clk 0:01:20]}  Rxh8 {[%clk 0:01:09]} 29. Rxh8 {[%clk 0:01:20]}  Kxh8 {[%clk 0:01:09]} 30. b3 {[%clk 0:01:20]}  Kg7 {[%clk 0:01:04]} 31. a3 {[%clk 0:01:20]}  Kf7 {[%clk 0:01:03]} 32. b4 {[%clk 0:01:20]}  axb4 {[%clk 0:01:02]} 33. axb4 {[%clk 0:01:21]}  Ne4 {[%clk 0:00:58]} 34. Kd3 {[%clk 0:01:18]}  Nf2+ {[%clk 0:00:54]} 35. Kd4 {[%clk 0:01:19]}  Ke7 {[%clk 0:00:50]} 36. Ng5 {[%clk 0:01:13]}  Ng4 {[%clk 0:00:44]} 37. Ke4 {[%clk 0:00:57]}  Nf2+ {[%clk 0:00:36]} 38. Ke3 {[%clk 0:00:54]}  Ng4+ {[%clk 0:00:35]} 39. Kf4 {[%clk 0:00:54]}  Nf2 {[%clk 0:00:35]} 40. Ke3 {[%clk 0:00:52]}  Ng4+ {[%clk 0:00:34]} 41. Kd4 {[%clk 0:00:43]}  Nh6 {[%clk 0:00:27]} 42. Ke4 {[%clk 0:00:27]}  Ng4 {[%clk 0:00:25]} 43. Kf4 {[%clk 0:00:25]}  Nf2 {[%clk 0:00:24]} 44. Ke3 {[%clk 0:00:24]} 1/2-1/2


[Site "https://www.chess.com"]

[Event "Titled Tuesday Blitz July 4 Early 2023"]
[White "Aanna12"]
[Black "Legenia, Artem"]
[BlackFideId "14136945"]
[WhiteElo "2094"]
[BlackElo "2280"]
[Result "0-1"]
[Round "11"]
[TimeControl "180+2"]
[Date "2023.07.04"]
[WhiteClock "0:00:00"]
[BlackClock "0:01:20"]
[Board "143"]

1. e4 {[%clk 0:02:28]}  c5 {[%clk 0:02:58]} 2. Nf3 {[%clk 0:02:26]}  d6 {[%clk 0:02:59]} 3. d3 {[%clk 0:02:26]}  e6 {[%clk 0:02:57]} 4. g3 {[%clk 0:02:27]}  a6 {[%clk 0:02:55]} 5. Bg2 {[%clk 0:02:27]}  b5 {[%clk 0:02:56]} 6. c3 {[%clk 0:02:26]}  Bb7 {[%clk 0:02:57]} 7. O-O {[%clk 0:02:26]}  Nf6 {[%clk 0:02:57]} 8. Re1 {[%clk 0:02:26]}  Nbd7 {[%clk 0:02:57]} 9. Nbd2 {[%clk 0:02:21]}  Be7 {[%clk 0:02:58]} 10. d4 {[%clk 0:02:18]}  Qc7 {[%clk 0:02:56]} 11. a4 {[%clk 0:02:10]}  cxd4 {[%clk 0:02:55]} 12. cxd4 {[%clk 0:02:08]}  O-O {[%clk 0:02:55]} 13. e5 {[%clk 0:02:02]}  dxe5 {[%clk 0:02:45]} 14. dxe5 {[%clk 0:02:02]}  Nd5 {[%clk 0:02:46]} 15. Ne4 {[%clk 0:01:51]}  b4 {[%clk 0:02:32]} 16. Bg5 {[%clk 0:01:41]}  Bxg5 {[%clk 0:02:31]} 17. Nexg5 {[%clk 0:01:38]}  Rac8 {[%clk 0:02:31]} 18. Rc1 {[%clk 0:01:36]}  Qxc1 {[%clk 0:02:25]} 19. Qxc1 {[%clk 0:01:36]}  Rxc1 {[%clk 0:02:26]} 20. Rxc1 {[%clk 0:01:35]}  Rc8 {[%clk 0:02:17]} 21. Rxc8+ {[%clk 0:01:33]}  Bxc8 {[%clk 0:02:17]} 22. Ne4 {[%clk 0:01:33]}  Bb7 {[%clk 0:02:16]} 23. Bf1 {[%clk 0:01:25]}  Ne3 {[%clk 0:02:04]} 24. fxe3 {[%clk 0:01:16]}  Bxe4 {[%clk 0:02:04]} 25. Nd2 {[%clk 0:01:16]}  Bb7 {[%clk 0:01:59]} 26. Nc4 {[%clk 0:01:15]}  Nc5 {[%clk 0:01:55]} 27. Nd6 {[%clk 0:01:08]}  Bd5 {[%clk 0:01:49]} 28. Kf2 {[%clk 0:01:04]}  a5 {[%clk 0:01:48]} 29. Bb5 {[%clk 0:00:52]}  f6 {[%clk 0:01:38]} 30. exf6 {[%clk 0:00:38]}  gxf6 {[%clk 0:01:38]} 31. g4 {[%clk 0:00:24]}  Kf8 {[%clk 0:01:37]} 32. Kg3 {[%clk 0:00:24]}  Ke7 {[%clk 0:01:37]} 33. Nc8+ {[%clk 0:00:20]}  Kd8 {[%clk 0:01:35]} 34. Nb6 {[%clk 0:00:19]}  Bb3 {[%clk 0:01:35]} 35. Kf4 {[%clk 0:00:16]}  Kc7 {[%clk 0:01:34]} 36. Nc4 {[%clk 0:00:14]}  Nxa4 {[%clk 0:01:27]} 37. Nxa5 {[%clk 0:00:13]}  Bd1 {[%clk 0:01:23]} 38. b3 {[%clk 0:00:09]}  Nc5 {[%clk 0:01:22]} 39. Bc4 {[%clk 0:00:00]}  Kb6 {[%clk 0:01:20]} 0-1


[Site "https://www.chess.com"]

[Event "Titled Tuesday Blitz July 4 Early 2023"]
[White "Gyulamiryan-koryun"]
[Black "Biriukov, Ilja"]
[BlackFideId "4113373"]
[WhiteElo "1707"]
[BlackElo "2273"]
[Result "1-0"]
[Round "11"]
[TimeControl "180+2"]
[Date "2023.07.04"]
[WhiteClock "0:00:37"]
[BlackClock "0:00:00"]
[Board "144"]

1. d4 {[%clk 0:03:00]}  Nf6 {[%clk 0:02:58]} 2. Nf3 {[%clk 0:02:59]}  g6 {[%clk 0:02:56]} 3. g3 {[%clk 0:02:59]}  Bg7 {[%clk 0:02:56]} 4. Bg2 {[%clk 0:03:00]}  d6 {[%clk 0:02:56]} 5. O-O {[%clk 0:03:00]}  O-O {[%clk 0:02:57]} 6. a4 {[%clk 0:03:00]}  Nbd7 {[%clk 0:02:57]} 7. a5 {[%clk 0:03:00]}  e5 {[%clk 0:02:56]} 8. dxe5 {[%clk 0:03:00]}  dxe5 {[%clk 0:02:54]} 9. Nc3 {[%clk 0:02:59]}  c6 {[%clk 0:02:49]} 10. a6 {[%clk 0:02:58]}  b6 {[%clk 0:02:47]} 11. Qd6 {[%clk 0:02:29]}  c5 {[%clk 0:01:56]} 12. Nxe5 {[%clk 0:01:57]}  Ne8 {[%clk 0:01:32]} 13. Nc6 {[%clk 0:01:39]}  Nxd6 {[%clk 0:01:12]} 14. Nxd8 {[%clk 0:01:39]}  Rxd8 {[%clk 0:01:03]} 15. Bxa8 {[%clk 0:01:38]}  Nf5 {[%clk 0:00:53]} 16. Rd1 {[%clk 0:01:36]}  Re8 {[%clk 0:00:48]} 17. Bb7 {[%clk 0:01:34]}  Ne5 {[%clk 0:00:37]} 18. Nb5 {[%clk 0:01:27]}  Nd4 {[%clk 0:00:31]} 19. Nd6 {[%clk 0:01:18]}  Rd8 {[%clk 0:00:22]} 20. Bxc8 {[%clk 0:00:56]}  Rxd6 {[%clk 0:00:22]} 21. Be3 {[%clk 0:00:39]}  Nxe2+ {[%clk 0:00:17]} 22. Kf1 {[%clk 0:00:38]}  Nd4 {[%clk 0:00:00]} 23. c3 {[%clk 0:00:37]} 1-0


[Site "https://www.chess.com"]

[Event "Titled Tuesday Blitz July 4 Early 2023"]
[White "Winkels, Marcel"]
[Black "agvania123"]
[WhiteFideId "1003887"]
[WhiteElo "2069"]
[BlackElo "2260"]
[Result "1-0"]
[Round "11"]
[TimeControl "180+2"]
[Date "2023.07.04"]
[WhiteClock "0:02:08"]
[BlackClock "0:01:36"]
[Board "145"]

1. e4 {[%clk 0:03:00]}  d5 {[%clk 0:02:57]} 2. exd5 {[%clk 0:03:00]}  Qxd5 {[%clk 0:02:58]} 3. Nc3 {[%clk 0:03:00]}  Qd8 {[%clk 0:02:57]} 4. d4 {[%clk 0:03:00]}  Nf6 {[%clk 0:02:56]} 5. Nf3 {[%clk 0:03:01]}  Bg4 {[%clk 0:02:56]} 6. h3 {[%clk 0:03:00]}  Bxf3 {[%clk 0:02:57]} 7. Qxf3 {[%clk 0:02:59]}  c6 {[%clk 0:02:57]} 8. Be3 {[%clk 0:02:58]}  e6 {[%clk 0:02:58]} 9. O-O-O {[%clk 0:02:57]}  Bb4 {[%clk 0:02:58]} 10. Ne4 {[%clk 0:02:51]}  Nxe4 {[%clk 0:02:59]} 11. Qxe4 {[%clk 0:02:51]}  Qd5 {[%clk 0:02:59]} 12. Qxd5 {[%clk 0:02:47]}  cxd5 {[%clk 0:03:00]} 13. a3 {[%clk 0:02:45]}  Bd6 {[%clk 0:02:58]} 14. Kb1 {[%clk 0:02:42]}  Nc6 {[%clk 0:02:58]} 15. Bb5 {[%clk 0:02:34]}  a6 {[%clk 0:02:56]} 16. Bxc6+ {[%clk 0:02:33]}  bxc6 {[%clk 0:02:57]} 17. c4 {[%clk 0:02:32]}  Rb8 {[%clk 0:02:54]} 18. Ka2 {[%clk 0:02:30]}  Kd7 {[%clk 0:02:52]} 19. Rc1 {[%clk 0:02:26]}  Rhc8 {[%clk 0:02:44]} 20. Rc2 {[%clk 0:02:25]}  a5 {[%clk 0:02:38]} 21. Rhc1 {[%clk 0:02:24]}  a4 {[%clk 0:02:37]} 22. g3 {[%clk 0:02:22]}  g6 {[%clk 0:02:20]} 23. g4 {[%clk 0:02:19]}  Rc7 {[%clk 0:02:12]} 24. c5 {[%clk 0:02:13]}  Bh2 {[%clk 0:01:36]} 25. Rh1 {[%clk 0:02:08]} 1-0


[Site "https://www.chess.com"]

[Event "Titled Tuesday Blitz July 4 Early 2023"]
[White "Ho, In Hei Henry"]
[Black "Nakhbayeva, Guliskhan"]
[WhiteFideId "6002552"]
[BlackFideId "13704788"]
[WhiteElo "2070"]
[BlackElo "2210"]
[Result "0-1"]
[Round "11"]
[TimeControl "180+2"]
[Date "2023.07.04"]
[WhiteClock "0:00:00"]
[BlackClock "0:00:03"]
[Board "147"]

1. e4 {[%clk 0:03:00]}  e6 {[%clk 0:03:00]} 2. d4 {[%clk 0:03:00]}  d5 {[%clk 0:03:01]} 3. e5 {[%clk 0:03:00]}  c5 {[%clk 0:03:00]} 4. c3 {[%clk 0:03:00]}  Qb6 {[%clk 0:03:01]} 5. Nf3 {[%clk 0:02:57]}  Nc6 {[%clk 0:03:00]} 6. a3 {[%clk 0:02:57]}  c4 {[%clk 0:03:00]} 7. Be2 {[%clk 0:02:55]}  Na5 {[%clk 0:03:00]} 8. Nbd2 {[%clk 0:02:54]}  Bd7 {[%clk 0:03:00]} 9. h4 {[%clk 0:02:50]}  f5 {[%clk 0:02:56]} 10. exf6 {[%clk 0:02:46]}  gxf6 {[%clk 0:02:55]} 11. O-O {[%clk 0:02:34]}  O-O-O {[%clk 0:02:55]} 12. Re1 {[%clk 0:02:33]}  Bd6 {[%clk 0:02:47]} 13. Rb1 {[%clk 0:02:24]}  Ne7 {[%clk 0:02:45]} 14. b3 {[%clk 0:02:20]}  cxb3 {[%clk 0:02:44]} 15. Nxb3 {[%clk 0:02:16]}  Ba4 {[%clk 0:02:45]} 16. Nfd2 {[%clk 0:01:50]}  Qc7 {[%clk 0:02:38]} 17. Qc2 {[%clk 0:01:46]}  Bf4 {[%clk 0:02:25]} 18. Qa2 {[%clk 0:01:39]}  Bxd2 {[%clk 0:01:53]} 19. Nxd2 {[%clk 0:01:33]}  Qxc3 {[%clk 0:01:54]} 20. Rb4 {[%clk 0:00:41]}  Bd7 {[%clk 0:01:16]} 21. Qb2 {[%clk 0:00:38]}  Qxb2 {[%clk 0:01:13]} 22. Bxb2 {[%clk 0:00:31]}  Nec6 {[%clk 0:01:13]} 23. Rc1 {[%clk 0:00:23]}  Kb8 {[%clk 0:01:09]} 24. Rb5 {[%clk 0:00:15]}  a6 {[%clk 0:01:01]} 25. Rbc5 {[%clk 0:00:15]}  b6 {[%clk 0:00:58]} 26. R5c2 {[%clk 0:00:13]}  Kb7 {[%clk 0:00:54]} 27. Bc3 {[%clk 0:00:09]}  Rc8 {[%clk 0:00:50]} 28. Bxa5 {[%clk 0:00:09]}  Nxa5 {[%clk 0:00:49]} 29. Rxc8 {[%clk 0:00:08]}  Rxc8 {[%clk 0:00:49]} 30. Rxc8 {[%clk 0:00:09]}  Bxc8 {[%clk 0:00:50]} 31. Nf3 {[%clk 0:00:07]}  Kc6 {[%clk 0:00:47]} 32. g4 {[%clk 0:00:07]}  Nb3 {[%clk 0:00:46]} 33. g5 {[%clk 0:00:06]}  fxg5 {[%clk 0:00:45]} 34. hxg5 {[%clk 0:00:07]}  Kd6 {[%clk 0:00:41]} 35. Bd3 {[%clk 0:00:07]}  Ke7 {[%clk 0:00:32]} 36. Bxh7 {[%clk 0:00:08]}  Kf7 {[%clk 0:00:32]} 37. Bc2 {[%clk 0:00:07]}  Na5 {[%clk 0:00:27]} 38. Ne5+ {[%clk 0:00:07]}  Kg7 {[%clk 0:00:26]} 39. f4 {[%clk 0:00:07]}  Bb7 {[%clk 0:00:23]} 40. Kf2 {[%clk 0:00:06]}  Nc6 {[%clk 0:00:23]} 41. Ke3 {[%clk 0:00:06]}  Ne7 {[%clk 0:00:10]} 42. Kf3 {[%clk 0:00:04]}  b5 {[%clk 0:00:10]} 43. Kg4 {[%clk 0:00:03]}  a5 {[%clk 0:00:09]} 44. f5 {[%clk 0:00:04]}  exf5+ {[%clk 0:00:08]} 45. Bxf5 {[%clk 0:00:04]}  Nxf5 {[%clk 0:00:09]} 46. Kxf5 {[%clk 0:00:05]}  b4 {[%clk 0:00:08]} 47. axb4 {[%clk 0:00:04]}  a4 {[%clk 0:00:04]} 48. Nd3 {[%clk 0:00:04]}  a3 {[%clk 0:00:04]} 49. Nc5 {[%clk 0:00:01]}  a2 {[%clk 0:00:03]} 50. Nb3 {[%clk 0:00:00]}  Ba6 {[%clk 0:00:03]} 0-1


[Site "https://www.chess.com"]

[Event "Titled Tuesday Blitz July 4 Early 2023"]
[White "Guevara Sanchez, Erick Marvin"]
[Black "Torres Dominguez, David"]
[WhiteFideId "6700136"]
[BlackFideId "2220857"]
[WhiteElo "2066"]
[BlackElo "2139"]
[Result "0-1"]
[Round "11"]
[TimeControl "180+2"]
[Date "2023.07.04"]
[WhiteClock "0:02:43"]
[BlackClock "0:02:33"]
[Board "148"]

1. e4 {[%clk 0:03:00]}  Nc6 {[%clk 0:02:59]} 2. d4 {[%clk 0:02:59]}  e5 {[%clk 0:02:59]} 3. d5 {[%clk 0:02:59]}  Nce7 {[%clk 0:02:59]} 4. Nf3 {[%clk 0:02:59]}  Ng6 {[%clk 0:02:59]} 5. h4 {[%clk 0:02:58]}  h5 {[%clk 0:02:57]} 6. Be2 {[%clk 0:02:58]}  Bc5 {[%clk 0:02:57]} 7. Ng5 {[%clk 0:02:56]}  d6 {[%clk 0:02:55]} 8. Bxh5 {[%clk 0:02:56]}  Nf6 {[%clk 0:02:49]} 9. Bxg6 {[%clk 0:02:53]}  fxg6 {[%clk 0:02:50]} 10. Nc3 {[%clk 0:02:51]}  Ng4 {[%clk 0:02:45]} 11. Be3 {[%clk 0:02:48]}  Nxe3 {[%clk 0:02:41]} 12. fxe3 {[%clk 0:02:49]}  Qxg5 {[%clk 0:02:40]} 13. hxg5 {[%clk 0:02:45]}  Rxh1+ {[%clk 0:02:40]} 14. Ke2 {[%clk 0:02:46]}  Rxd1 {[%clk 0:02:39]} 15. Rxd1 {[%clk 0:02:47]}  Bg4+ {[%clk 0:02:39]} 16. Kd3 {[%clk 0:02:45]}  Bxd1 {[%clk 0:02:40]} 17. Nxd1 {[%clk 0:02:46]}  Ke7 {[%clk 0:02:39]} 18. Nf2 {[%clk 0:02:45]}  Rf8 {[%clk 0:02:33]} 19. Ke2 {[%clk 0:02:43]} 0-1


[Site "https://www.chess.com"]

[Event "Titled Tuesday Blitz July 4 Early 2023"]
[White "Iskusnyh, Sergei"]
[Black "Skiadopoulos, Nikolaos"]
[WhiteFideId "4120027"]
[BlackFideId "4200772"]
[WhiteElo "2632"]
[BlackElo "1900"]
[Result "1-0"]
[Round "11"]
[TimeControl "180+2"]
[Date "2023.07.04"]
[WhiteClock "0:00:21"]
[BlackClock "0:00:00"]
[Board "149"]

1. d4 {[%clk 0:03:00]}  Nf6 {[%clk 0:02:57]} 2. c4 {[%clk 0:03:00]}  c5 {[%clk 0:02:56]} 3. d5 {[%clk 0:02:58]}  b5 {[%clk 0:02:55]} 4. cxb5 {[%clk 0:02:57]}  a6 {[%clk 0:02:55]} 5. e3 {[%clk 0:02:53]}  g6 {[%clk 0:02:47]} 6. Nc3 {[%clk 0:02:48]}  Bg7 {[%clk 0:02:46]} 7. a4 {[%clk 0:02:47]}  O-O {[%clk 0:02:45]} 8. e4 {[%clk 0:02:46]}  d6 {[%clk 0:02:41]} 9. Nf3 {[%clk 0:02:38]}  e6 {[%clk 0:02:21]} 10. dxe6 {[%clk 0:02:06]}  Bxe6 {[%clk 0:02:20]} 11. Be2 {[%clk 0:02:03]}  axb5 {[%clk 0:02:18]} 12. Bxb5 {[%clk 0:02:02]}  d5 {[%clk 0:01:42]} 13. exd5 {[%clk 0:01:59]}  Nxd5 {[%clk 0:01:42]} 14. Nxd5 {[%clk 0:01:58]}  Qxd5 {[%clk 0:01:41]} 15. O-O {[%clk 0:01:54]}  Nc6 {[%clk 0:01:36]} 16. Ra3 {[%clk 0:00:54]}  Nd4 {[%clk 0:01:32]} 17. Nxd4 {[%clk 0:00:53]}  cxd4 {[%clk 0:01:30]} 18. b3 {[%clk 0:00:42]}  Rfd8 {[%clk 0:01:17]} 19. Bc4 {[%clk 0:00:37]}  Qd6 {[%clk 0:01:06]} 20. Bxe6 {[%clk 0:00:36]}  Qxe6 {[%clk 0:01:06]} 21. Qd3 {[%clk 0:00:36]}  Rac8 {[%clk 0:01:03]} 22. Bd2 {[%clk 0:00:34]}  h5 {[%clk 0:00:45]} 23. a5 {[%clk 0:00:32]}  Qd6 {[%clk 0:00:40]} 24. Ra4 {[%clk 0:00:29]}  Be5 {[%clk 0:00:29]} 25. h3 {[%clk 0:00:28]}  Bh2+ {[%clk 0:00:26]} 26. Kh1 {[%clk 0:00:27]}  Bf4 {[%clk 0:00:24]} 27. Bxf4 {[%clk 0:00:27]}  Qxf4 {[%clk 0:00:23]} 28. a6 {[%clk 0:00:26]}  Rc3 {[%clk 0:00:00]} 29. Qxc3 {[%clk 0:00:21]} 1-0


[Site "https://www.chess.com"]